fUSD/lending_fUSD_20250402
["ID","MTS","AMOUNT","RATE_DAILY","PERIOD"]
[357014505,1743578403191,-365.8591151,0.00051232,120]
[357014506,1743578403238,-456.62537398,0.00051232,120]
[357014507,1743578403283,-500.0,0.00051232,30]
[357014508,1743578403329,-500.0,0.00051232,120]
[357014509,1743578403377,-584.46,0.00051232,120]
[357014510,1743578403422,-500.0,0.00051232,120]
[357014511,1743578403469,-500.0,0.00051232,120]
[357014512,1743578403516,-500.0,0.00051232,120]
[357014513,1743578403564,-500.0,0.00051232,120]
[357014514,1743578403610,-500.0,0.00051232,120]
[357014515,1743578403658,-500.0,0.00051232,120]
[357014516,1743578403705,-500.0,0.00051232,120]
[357014517,1743578403750,-500.0,0.00051232,120]
[357014518,1743578403798,-502.65031061,0.00051232,120]
[357014519,1743578403844,-500.0,0.00051232,120]
[357014520,1743578403890,-8724.76,0.00051232,120]
[357014521,1743578403937,-500.0,0.00051232,120]
[357014522,1743578403983,-1935.16,0.00051232,120]
[357014523,1743578404030,-1000.0,0.00051232,120]
[357014524,1743578404078,-834.73,0.00051232,120]
[357014525,1743578404127,-150.64,0.00051329,120]
[357014526,1743578404178,-185.77511815,0.00051406,44]
[357014527,1743578404228,-500000.0,0.000515,120]
[357014528,1743578404279,-250000.0,0.000515,120]
[357014529,1743578404324,-500.0,0.00051506,120]
[357014530,1743578404372,-500.0,0.00051506,120]
[357014531,1743578404417,-500.0,0.00051506,120]
[357014532,1743578404462,-500.0,0.00051506,120]
[357014533,1743578404507,-500.0,0.00051506,30]
[357014534,1743578404552,-500.0,0.00051506,120]
[357014535,1743578404597,-584.46,0.00051506,120]
[357014536,1743578404640,-500.0,0.00051506,120]
[357014537,1743578404685,-500.0,0.00051506,120]
[357014538,1743578404888,-500.0,0.00051506,120]
[357014539,1743578404938,-500.0,0.00051506,120]
[357014540,1743578404986,-531.2123,0.00051506,120]
[357014541,1743578405033,-500.0,0.00051506,120]
[357014542,1743578405082,-500.0,0.00051506,120]
[357014543,1743578405131,-253.694247,0.00051506,120]
[357014544,1743578405179,-500.0,0.00051506,120]
[357014545,1743578405227,-8724.76,0.00051506,120]
[357014546,1743578405278,-500.0,0.00051506,120]
[357014547,1743578405323,-1935.16,0.00051506,120]
[357014548,1743578405376,-1000.0,0.00051506,120]
[357014549,1743578405422,-834.73,0.00051506,120]
[357014550,1743578405473,-500.0,0.00051581,60]
[357014551,1743578405521,-500.0,0.00051612,120]
[357014552,1743578405566,-510.49619246,0.00051612,120]
[357014553,1743578405613,-500.0,0.00051612,120]
[357014554,1743578405659,-481.58053357,0.0005178,120]
[357014555,1743578405707,-500.0,0.0005178,120]
[357014556,1743578405756,-500.0,0.0005178,120]
[357014557,1743578405802,-500.0,0.0005178,120]
[357014558,1743578405849,-398.22860255,0.0005178,30]
[357014559,1743578405895,-500.0,0.0005178,120]
[357014560,1743578405940,-584.46,0.0005178,120]
[357014561,1743578405984,-500.0,0.0005178,120]
[357014562,1743578406033,-500.0,0.0005178,120]
[357014563,1743578406081,-500.0,0.0005178,120]
[357014564,1743578406129,-500.0,0.0005178,120]
[357014565,1743578406176,-500.0,0.0005178,120]
[357014566,1743578406223,-500.0,0.0005178,120]
[357014567,1743578406272,-500.0,0.0005178,120]
[357014568,1743578406322,-8724.76,0.0005178,120]
[357014569,1743578406372,-622.90952636,0.0005178,120]
[357014570,1743578406420,-1935.16,0.0005178,120]
[357014571,1743578406465,-1000.0,0.0005178,120]
[357014572,1743578406511,-834.73,0.0005178,120]
[357014573,1743578406561,-209.0,0.0005185,30]
[357014574,1743578406609,-210.0,0.0005185,30]
[357014575,1743578406659,-505.32336541,0.00051987,30]
[357014576,1743578406708,-50000.0,0.00052,52]
[357014577,1743578406756,-500000.0,0.00052,120]
[357014578,1743578406802,-384259.4789244,0.00052,120]
[357014579,1743578412782,-115740.5210756,0.00052,120]
[357014580,1743578412827,-5076.0,0.00052,120]
[357014581,1743578412871,-500000.0,0.00052,120]
[357014582,1743578412917,-603.58632336,0.00052,60]
[357014583,1743578412961,-150.11,0.00052,30]
[357014584,1743578413006,-5119.65182258,0.00052,120]
[357014585,1743578413050,-150.0,0.00052,30]
[357014586,1743578413093,-519.93327323,0.00052054,120]
[357014587,1743578413139,-500.0,0.00052054,120]
[357014588,1743578413184,-500.0,0.00052054,120]
[357014589,1743578413230,-500.0,0.00052054,120]
[357014590,1743578413274,-584.46,0.00052054,120]
[357014591,1743578413321,-500.0,0.00052054,120]
[357014592,1743578413367,-500.0,0.00052054,120]
[357014593,1743578413410,-429.21624778,0.00052054,120]
[357014594,1743578413454,-237.39172255,0.00052054,120]
[357014595,1743578413498,-500.0,0.00052054,120]
[357014596,1743578413547,-500.0,0.00052054,120]
[357014597,1743578413588,-500.0,0.00052054,120]
[357014598,1743578413629,-8724.76,0.00052054,120]
[357014599,1743578413671,-1935.16,0.00052054,120]
[357014600,1743578413711,-1000.0,0.00052054,120]
[357014601,1743578413753,-834.73,0.00052054,120]
[357014602,1743578413926,-514.59899048,0.0005216,120]
[357014603,1743578413972,-538.43643337,0.0005216,120]
[357014604,1743578414019,-1065.0,0.0005225,30]
[357014605,1743578414064,-500.0,0.00052328,120]
[357014606,1743578414112,-319.59616626,0.00052328,120]
[357014607,1743578414159,-500.0,0.00052328,120]
[357014608,1743578414202,-584.46,0.00052328,120]
[357014609,1743578414247,-500.0,0.00052328,120]
[357014610,1743578414294,-383.24463337,0.00052328,120]
[357014611,1743578414338,-230.70445115,0.00052328,120]
[357014612,1743578414384,-500.0,0.00052328,120]
[357014613,1743578414432,-500.0,0.00052328,120]
[357014614,1743578414478,-8724.76,0.00052328,120]
[357014615,1743578414524,-1935.16,0.00052328,120]
[357014616,1743578414570,-1000.0,0.00052328,120]
[357014617,1743578414620,-834.73,0.00052328,120]
[357014618,1743578414680,-150.64,0.00052377,120]
[357014619,1743578414726,-250000.0,0.000525,120]
[357014620,1743578414774,-500000.0,0.000525,120]
[357014621,1743578414816,-284.0765986,0.000525,30]
[357014622,1743578414860,-747.24818061,0.000525,30]
[357014623,1743578414904,-500.0,0.00052602,120]
[357014624,1743578414946,-500.0,0.00052602,120]
[357014625,1743578414989,-584.46,0.00052602,120]
[357014626,1743578415034,-500.0,0.00052602,120]
[357014627,1743578415076,-500.0,0.00052602,120]
[357014628,1743578415121,-500.0,0.00052602,120]
[357014629,1743578415164,-8724.76,0.00052602,120]
[357014630,1743578415206,-1935.16,0.00052602,120]
[357014631,1743578415251,-425.17509472,0.00052602,120]
[357014632,1743578415294,-834.73,0.00052602,120]
[357014633,1743578415335,-3417.0074777,0.000528,120]
[357014634,1743578415378,-500.0,0.00052876,120]
[357014635,1743578415420,-500.0,0.00052876,120]
[357014636,1743578415463,-584.46,0.00052876,120]
[357014637,1743578415507,-500.0,0.00052876,120]
[357014638,1743578415553,-500.0,0.00052876,120]
[357014639,1743578415598,-500.0,0.00052876,120]
[357014640,1743578415640,-8724.76,0.00052876,120]
[357014641,1743578415682,-1935.16,0.00052876,120]
[357014642,1743578415725,-834.73,0.00052876,120]
[357014643,1743578415769,-500.0,0.00052905,60]
[357014644,1743578415813,-30000.0,0.00052978,120]
[357014645,1743578415857,-50000.0,0.00053,53]
[357014646,1743578415902,-500000.0,0.00053,120]
[357014647,1743578415948,-500000.0,0.00053,120]
[357014648,1743578415991,-199.76048165,0.00053,120]
[357014649,1743578416036,-471381.66102699,0.00053,120]
[357014650,1743578427243,-151.6,0.0004899,120]
[357014651,1743578427289,-500.0,0.00049315,120]
[357014652,1743578427334,-500.0,0.00049589,120]
[357014653,1743578427509,-500.0,0.00049863,120]
[357014654,1743578427564,-288.73248134,0.00050136,120]
[357014655,1743578427614,-28618.33897301,0.00053,120]
[357014656,1743578427657,-288.284,0.00053,30]
[357014657,1743578427701,-150.0,0.00053,53]
[357014658,1743578427752,-500.0,0.0005315,120]
[357014659,1743578427799,-368.60702323,0.0005315,120]
[357014660,1743578427845,-584.46,0.0005315,120]
[357014661,1743578427890,-500.0,0.0005315,120]
[357014662,1743578427936,-370.88007123,0.0005315,120]
[357014663,1743578427978,-8724.76,0.0005315,120]
[357014664,1743578428024,-1935.16,0.0005315,120]
[357014665,1743578428073,-834.73,0.0005315,120]
[357014666,1743578428127,-154.95,0.000532,51]
[357014667,1743578428183,-154.95,0.000532,51]
[357014668,1743578428237,-154.95,0.000532,51]
[357014669,1743578428290,-154.95,0.000532,51]
[357014670,1743578428341,-154.95,0.000532,51]
[357014671,1743578428393,-154.95,0.000532,51]
[357014672,1743578428439,-211.0,0.0005337,30]
[357014673,1743578428489,-209.0,0.0005337,30]
[357014674,1743578428535,-210.0,0.0005337,30]
[357014675,1743578428582,-500.0,0.00053424,120]
[357014676,1743578428629,-584.46,0.00053424,120]
[357014677,1743578428675,-375.57732843,0.00053424,120]
[357014678,1743578428721,-8724.76,0.00053424,120]
[357014679,1743578428767,-1935.16,0.00053424,120]
[357014680,1743578428813,-834.73,0.00053424,120]
[357014681,1743578428862,-150.64,0.00053425,120]
[357014682,1743578428909,-212.75831079,0.00053444,120]
[357014683,1743578428952,-1000.0,0.0005345,60]
[357014684,1743578428996,-1000.0,0.0005345,60]
[357014685,1743578429040,-1000.0,0.0005345,60]
[357014686,1743578429088,-1000.0,0.0005345,60]
[357014687,1743578429134,-1000.0,0.0005345,60]
[357014688,1743578429184,-1000.0,0.0005345,60]
[357014689,1743578429229,-1000.0,0.0005345,60]
[357014690,1743578429274,-1000.0,0.0005345,60]
[357014691,1743578429325,-1000.0,0.0005345,60]
[357014692,1743578429366,-1000.0,0.0005345,60]
[357014693,1743578429409,-1000.0,0.0005345,60]
[357014694,1743578429451,-1000.0,0.0005345,60]
[357014695,1743578429493,-1000.0,0.0005345,60]
[357014696,1743578429538,-1000.0,0.0005345,60]
[357014697,1743578429583,-1000.0,0.0005345,60]
[357014698,1743578429626,-1000.0,0.0005345,60]
[357014699,1743578429670,-1000.0,0.0005345,60]
[357014700,1743578429714,-1000.0,0.0005345,60]
[357014701,1743578429759,-1000.0,0.0005345,60]
[357014702,1743578429802,-435.01,0.0005345,60]
[357014703,1743578429847,-250000.0,0.000535,120]
[357014704,1743578429892,-500.0,0.00053698,120]
[357014705,1743578429934,-584.46,0.00053698,120]
[357014706,1743578429978,-8724.76,0.00053698,120]
[357014707,1743578430022,-1935.16,0.00053698,120]
[357014708,1743578430067,-834.73,0.00053698,120]
[357014709,1743578430112,-191.3,0.000539,120]
[357014710,1743578430156,-500.0,0.00053972,120]
[357014711,1743578430199,-584.46,0.00053972,120]
[357014712,1743578430245,-8724.76,0.00053972,120]
[357014713,1743578430291,-500.0,0.00053972,120]
[357014714,1743578430338,-500.0,0.00053972,120]
[357014715,1743578430380,-500.0,0.00053972,120]
[357014716,1743578430425,-500.0,0.00053972,120]
[357014717,1743578430469,-500.0,0.00053972,120]
[357014718,1743578430511,-500.0,0.00053972,120]
[357014719,1743578430555,-500.0,0.00053972,120]
[357014720,1743578430596,-500.0,0.00053972,120]
[357014721,1743578430642,-500.0,0.00053972,120]
[357014722,1743578430685,-506.95292476,0.00053972,120]
[357014723,1743578430729,-1935.16,0.00053972,120]
[357014724,1743578430772,-834.73,0.00053972,120]
[357014725,1743578430815,-50000.0,0.00054,54]
[357014726,1743578430861,-3000.0,0.00054,120]
[357014727,1743578430904,-19583.04372325,0.00054,120]
[357014728,1743578430948,-5000.0,0.00054,120]
[357014729,1743578430991,-538.7830307,0.00054,55]
[357014730,1743578431034,-108455.14195153,0.00054,120]
[357014731,1743578431080,-500000.0,0.00054,120]
[357014732,1743578431125,-500000.0,0.00054,120]
[357014733,1743578431172,-200.0,0.00054,120]
[357014734,1743578431215,-4600.0,0.00054,120]
[357014735,1743578431262,-500000.0,0.00054,120]
[357014736,1743578431307,-83895.47501637,0.00054,30]
[357014737,1743578431480,-500.0,0.00054246,120]
[357014738,1743578431527,-584.46,0.00054246,120]
[357014739,1743578431569,-8724.76,0.00054246,120]
[357014740,1743578431632,-1935.16,0.00054246,120]
[357014741,1743578431680,-834.73,0.00054246,120]
[357014742,1743578431729,-2163.02353418,0.00054498,69]
[357014743,1743578431776,-11440.77967286,0.000545,120]
[357014744,1743578431824,-500.0,0.0005452,120]
[357014745,1743578431875,-584.46,0.0005452,120]
[357014746,1743578431924,-8724.76,0.0005452,120]
[357014747,1743578431973,-1935.16,0.0005452,120]
[357014748,1743578432026,-834.73,0.0005452,120]
[357014749,1743578432077,-23431.56098586,0.00054691,119]
[357014750,1743578432128,-101886.23417112,0.00054698,119]
[357014751,1743578432176,-278.49886549,0.00054698,119]
[357014752,1743578432222,-324.30019101,0.00054698,119]
[357014753,1743578432270,-1002.2503,0.00054699,30]
[357014754,1743578432323,-324.30019101,0.00054707,119]
[357014755,1743578432369,-23431.56098586,0.0005471,119]
[357014756,1743578432415,-23431.56098586,0.0005471,119]
[357014757,1743578432459,-101886.23417112,0.00054712,119]
[357014758,1743578432505,-278.49886549,0.00054713,119]
[357014759,1743578432555,-23431.56098586,0.00054716,119]
[357014760,1743578432602,-324.30019101,0.00054716,119]
[357014761,1743578432647,-324.30019101,0.00054718,119]
[357014762,1743578432691,-278.49886549,0.00054719,119]
[357014763,1743578432737,-101886.23417112,0.0005472,119]
[357014764,1743578432782,-215.19256755,0.00054727,119]
[357014765,1743578432827,-215.19256755,0.0005473,119]
[357014766,1743578432872,-215.19256755,0.0005473,119]
[357014767,1743578432917,-278.49886549,0.00054731,119]
[357014768,1743578432964,-278.49886549,0.00054734,119]
[357014769,1743578433011,-324.30019101,0.00054736,119]
[357014770,1743578433061,-23431.56098586,0.00054737,119]
[357014771,1743578433113,-215.19256755,0.00054737,119]
[357014772,1743578433160,-278.49886549,0.00054747,119]
[357014773,1743578433215,-215.19256755,0.00054747,119]
[357014774,1743578433264,-278.49886549,0.00054751,119]
[357014775,1743578433315,-324.30019101,0.00054752,119]
[357014776,1743578433365,-101886.23417112,0.0005476,119]
[357014777,1743578433410,-101886.23417112,0.00054765,119]
[357014778,1743578433456,-101886.23417112,0.00054766,119]
[357014779,1743578433504,-92031.99566006,0.00054769,119]
[357014780,1743578446471,-9854.23851106,0.00054769,119]
[357014781,1743578446519,-101886.23417112,0.00054773,119]
[357014782,1743578446567,-101886.23417112,0.00054776,119]
[357014783,1743578446715,-101886.23417112,0.00054778,119]
[357014784,1743578446785,-324.30019101,0.00054784,119]
[357014785,1743578446832,-324.30019101,0.00054785,119]
[357014786,1743578446877,-23431.56098586,0.00054786,119]
[357014787,1743578446919,-324.30019101,0.00054789,119]
[357014788,1743578446964,-278.49886549,0.00054792,119]
[357014789,1743578447008,-171.63,0.00054794,120]
[357014790,1743578447054,-500.0,0.00054794,120]
[357014791,1743578447100,-500.0,0.00054794,120]
[357014792,1743578447145,-293.86666823,0.00054794,120]
[357014793,1743578447192,-500.0,0.00054794,120]
[357014794,1743578447237,-584.46,0.00054794,120]
[357014795,1743578447285,-1008.68124528,0.00054794,120]
[357014796,1743578447339,-8724.76,0.00054794,120]
[357014797,1743578447386,-1935.16,0.00054794,120]
[357014798,1743578447435,-1000.0,0.00054794,120]
[357014799,1743578447481,-1000.0,0.00054794,120]
[357014800,1743578447534,-1000.0,0.00054794,120]
[357014801,1743578447582,-1000.0,0.00054794,120]
[357014802,1743578447627,-948.38878002,0.00054794,120]
[357014803,1743578447672,-834.73,0.00054794,120]
[357014804,1743578447716,-150.0,0.00054795,120]
[357014805,1743578447763,-150.0,0.00054795,120]
[357014806,1743578447810,-150.0,0.00054795,120]
[357014807,1743578447854,-150.0,0.00054795,120]
[357014808,1743578447901,-4000.0,0.00054795,60]
[357014809,1743578447946,-23431.56098586,0.00054795,119]
[357014810,1743578447990,-23431.56098586,0.00054796,119]
[357014811,1743578448038,-23431.56098586,0.00054798,119]
[357014812,1743578448086,-23431.56098586,0.00054798,119]
[357014813,1743578448138,-150.0,0.00054838,120]
[357014814,1743578448185,-150.0,0.00054881,120]
[357014815,1743578448234,-211.0,0.0005489,120]
[357014816,1743578448281,-209.0,0.0005489,30]
[357014817,1743578448333,-210.0,0.0005489,30]
[357014818,1743578448378,-150.0,0.00054924,120]
[357014819,1743578448426,-150.0,0.00054967,120]
[357014820,1743578448477,-50000.0,0.00055,55]
[357014821,1743578448520,-1978.0,0.00055,120]
[357014822,1743578448565,-222.0,0.00055,120]
[357014823,1743578448607,-500.0,0.00055,56]
[357014824,1743578448652,-500000.0,0.00055,120]
[357014825,1743578448696,-500000.0,0.00055,120]
[357014826,1743578448736,-185.0,0.00055,120]
[357014827,1743578448780,-1065.0,0.00055,120]
[357014828,1743578448824,-150.0,0.0005501,120]
[357014829,1743578448873,-150.0,0.0005504,120]
[357014830,1743578448922,-150.0,0.00055053,120]
[357014831,1743578448968,-500.0,0.00055068,120]
[357014832,1743578449016,-584.46,0.00055068,120]
[357014833,1743578449063,-8724.76,0.00055068,120]
[357014834,1743578449108,-1935.16,0.00055068,120]
[357014835,1743578449165,-834.73,0.00055068,120]
[357014836,1743578449215,-150.0,0.00055096,120]
[357014837,1743578449262,-150.0,0.00055139,120]
[357014838,1743578449310,-150.0,0.00055182,120]
[357014839,1743578449354,-150.0,0.00055225,120]
[357014840,1743578449400,-150.0,0.0005525,120]
[357014841,1743578449445,-150.0,0.00055268,120]
[357014842,1743578449494,-500.0,0.00055282,120]
[357014843,1743578449542,-150.0,0.00055285,120]
[357014844,1743578449595,-150.0,0.00055311,120]
[357014845,1743578449642,-191.56,0.00055323,120]
[357014846,1743578449686,-500.0,0.00055339,120]
[357014847,1743578449735,-500.0,0.00055342,120]
[357014848,1743578449784,-584.46,0.00055342,120]
[357014849,1743578449829,-8724.76,0.00055342,120]
[357014850,1743578449877,-1935.16,0.00055342,120]
[357014851,1743578449924,-834.73,0.00055342,120]
[357014852,1743578449970,-150.0,0.00055354,120]
[357014853,1743578450018,-556.0,0.00055387,30]
[357014854,1743578450067,-150.0,0.00055398,120]
[357014855,1743578450117,-2000.0,0.000554,90]
[357014856,1743578450167,-172.2822121,0.0005542,120]
[357014857,1743578450213,-974885.82,0.0005542,120]
[357014858,1743578450262,-2051.0,0.0005544,32]
[357014859,1743578450311,-150.0,0.00055441,120]
[357014860,1743578450356,-150.0,0.00055484,120]
[357014861,1743578450407,-154.95,0.000555,54]
[357014862,1743578450458,-154.95,0.000555,54]
[357014863,1743578450651,-154.95,0.000555,54]
[357014864,1743578450698,-154.95,0.000555,54]
[357014865,1743578450748,-154.95,0.000555,54]
[357014866,1743578450799,-154.95,0.000555,54]
[357014867,1743578450846,-150.0,0.00055527,120]
[357014868,1743578450892,-150.0,0.0005553,120]
[357014869,1743578450934,-150.0,0.0005557,120]
[357014870,1743578450977,-150.0,0.00055613,120]
[357014871,1743578451021,-470.98891241,0.00055616,120]
[357014872,1743578451068,-584.46586538,0.00055616,120]
[357014873,1743578451111,-8724.9207815,0.00055616,120]
[357014874,1743578451153,-1935.35216695,0.00055616,120]
[357014875,1743578451196,-834.8206941,0.00055616,120]
[357014876,1743578451237,-150.0,0.00055656,120]
[357014877,1743578451285,-536.5069496,0.00055697,120]
[357014878,1743578451331,-150.0,0.00055699,120]
[357014879,1743578451378,-150.0,0.00055705,120]
[357014880,1743578451424,-150.0,0.00055742,120]
[357014881,1743578451470,-150.0,0.00055775,120]
[357014882,1743578451516,-150.0,0.00055785,120]
[357014883,1743578451560,-150.0,0.00055828,120]
[357014884,1743578451605,-163.16,0.00055833,120]
[357014885,1743578451648,-408.05,0.00055833,120]
[357014886,1743578451692,-150.0,0.00055871,120]
[357014887,1743578451737,-150.0,0.00055914,120]
[357014888,1743578451779,-150.0,0.00055958,120]
[357014889,1743578451823,-556.0,0.00055958,30]
[357014890,1743578451867,-50000.0,0.00056,56]
[357014891,1743578451912,-410787.33033219,0.00056,120]
[357014892,1743578452037,167.42,0.00013542,2]
[357014893,1743578464268,-89212.66966781,0.00056,120]
[357014894,1743578464318,-790.2,0.00056,120]
[357014895,1743578464368,-500.0,0.00056,57]
[357014896,1743578464415,-100000.0,0.00056,30]
[357014897,1743578464461,-4116.68678638,0.00056,120]
[357014898,1743578464509,-500000.0,0.00056,120]
[357014899,1743578464550,-10000.0,0.00056,120]
[357014900,1743578464596,-500000.0,0.00056,120]
[357014901,1743578464644,-150.0,0.00056001,120]
[357014902,1743578464689,-150.0,0.0005602,120]
[357014903,1743578464735,-150.0,0.00056044,120]
[357014904,1743578464781,-150.0,0.00056087,120]
[357014905,1743578464828,-150.0,0.0005613,120]
[357014906,1743578464894,-150.0,0.00056161,120]
[357014907,1743578464938,-150.0,0.00056173,120]
[357014908,1743578464983,-150.0,0.00056216,120]
[357014909,1743578465029,-150.0,0.00056259,120]
[357014910,1743578465198,-150.0,0.00056266,120]
[357014911,1743578465245,-150.0,0.00056302,120]
[357014912,1743578465292,-962.10928903,0.00056317,120]
[357014913,1743578465340,-150.0,0.00056345,120]
[357014914,1743578465388,-150.0,0.00056388,120]
[357014915,1743578465433,-235.6716659,0.000564,30]
[357014916,1743578465478,-15000.0,0.000564,120]
[357014917,1743578465520,-4783.0099574,0.0005643,30]
[357014918,1743578465564,-150.0,0.00056431,120]
[357014919,1743578465608,-3000.0,0.0005644,35]
[357014920,1743578465650,-150.0,0.00056474,120]
[357014921,1743578465696,-150.0,0.00056511,120]
[357014922,1743578465741,-150.0,0.00056517,120]
[357014923,1743578465782,-556.0,0.00056529,30]
[357014924,1743578465829,-150.0,0.00056561,120]
[357014925,1743578465872,-150.0,0.00056604,120]
[357014926,1743578465916,-150.0,0.00056616,120]
[357014927,1743578465963,-150.0,0.00056647,120]
[357014928,1743578466005,-2500.0,0.0005666,35]
[357014929,1743578466051,-150.0,0.0005669,120]
[357014930,1743578466096,-150.0,0.00056733,120]
[357014931,1743578466139,-150.0,0.00056756,120]
[357014932,1743578466186,-150.0,0.00056776,120]
[357014933,1743578466231,-150.0,0.00056819,120]
[357014934,1743578466276,-150.0,0.00056862,120]
[357014935,1743578466322,-5490.07079775,0.00056899,120]
[357014936,1743578466366,-150.0,0.00056905,120]
[357014937,1743578466414,-150.0,0.00056948,120]
[357014938,1743578466459,-300.0,0.0005697,30]
[357014939,1743578466504,-150.0,0.00056991,120]
[357014940,1743578466549,-1000.0,0.00056999,120]
[357014941,1743578466597,-50000.0,0.00057,57]
[357014942,1743578466642,-1000.0,0.00057,120]
[357014943,1743578466686,-2000.0,0.00057,100]
[357014944,1743578466728,-500.0,0.00057,58]
[357014945,1743578466772,-5000.0,0.00057,120]
[357014946,1743578466816,-150.0,0.00057,120]
[357014947,1743578466858,-412.2698605,0.00057,30]
[357014948,1743578466906,-500000.0,0.00057,120]
[357014949,1743578466952,-500000.0,0.00057,120]
[357014950,1743578466997,-240.77778,0.00057,120]
[357014951,1743578467043,-500000.0,0.00057,120]
[357014952,1743578467086,-232.81226,0.00057,120]
[357014953,1743578467132,-699.75843821,0.00057,120]
[357014954,1743578467176,-150.0,0.00057001,120]
[357014955,1743578467219,-150.0,0.00057034,120]
[357014956,1743578467263,-150.0,0.00057071,120]
[357014957,1743578467304,-150.0,0.00057077,120]
[357014958,1743578467347,-556.0,0.000571,30]
[357014959,1743578467388,-221.71637366,0.000571,30]
[357014960,1743578467429,-150.0,0.00057121,120]
[357014961,1743578467472,-150.0,0.00057164,120]
[357014962,1743578467513,-150.0,0.00057207,120]
[357014963,1743578467555,-150.0,0.00057246,120]
[357014964,1743578467598,-150.0,0.0005725,120]
[357014965,1743578467640,-150.0,0.00057293,120]
[357014966,1743578467683,-150.0,0.000573,120]
[357014967,1743578467728,-150.0,0.00057336,120]
[357014968,1743578467769,-150.0,0.00057379,120]
[357014969,1743578467813,-150.0,0.00057422,120]
[357014970,1743578467854,-150.0,0.00057465,120]
[357014971,1743578467896,-150.0,0.00057492,120]
[357014972,1743578467938,-150.0,0.00057508,120]
[357014973,1743578467979,-150.0,0.00057527,120]
[357014974,1743578468022,-540.15,0.00057534,120]
[357014975,1743578468070,150.0,0.00055339,120]
[357014978,1743578824239,151.0,0.0003,30]
[357014979,1743578824860,156.587,0.0003,30]
[357014980,1743578825503,162.380719,0.0003,30]
[357014981,1743578826140,168.3888056,0.0003,30]
[357014982,1743578826771,174.61919141,0.0003,30]
[357014983,1743578827136,-150.0,0.00014899,2]
[357014984,1743578827160,-63346.4894,0.000149,2]
[357014985,1743578827182,-659.519,0.000149,2]
[357014986,1743578827203,-277.7984,0.000149,2]
[357014987,1743578827225,-162.57649131,0.000149,2]
[357014988,1743578827246,-185.77511815,0.000149,2]
[357014989,1743578827267,-446.8774,0.000149,2]
[357014990,1743578827288,-3727.82987342,0.000149,2]
[357014991,1743578827310,-150.0,0.00014918,2]
[357014992,1743578827330,-166.31065999,0.00014973,2]
[357014993,1743578827351,-500.0,0.00014973,2]
[357014994,1743578827371,-206.41101217,0.00014999,2]
[357014995,1743578827393,-313.36510313,0.00014999,2]
[357014996,1743578827418,-19620.70646811,0.00015,2]
[357014997,1743578827460,181.08010149,0.0003,30]
[357014998,1743578828091,187.78006525,0.0003,30]
[357014999,1743578829153,194.72792766,0.0003,30]
[357015000,1743578829782,201.93286099,0.0003,30]
[357015001,1743578830460,209.40437684,0.0003,30]
[357015002,1743578831450,217.15233878,0.0003,30]
[357015003,1743578832173,225.18697532,0.0003,30]
[357015004,1743578832767,233.51889341,0.0003,30]
[357015005,1743578833460,242.15909246,0.0003,30]
[357015006,1743578834148,251.11897888,0.0003,30]